fUST/lending_fUST_20240906
["ID","MTS","AMOUNT","RATE_DAILY","PERIOD"]
[337311613,1725593468164,-500.0,0.00022008,2]
[337311614,1725593468176,-516.65882113,0.00022008,2]
[337311615,1725593468186,-500.0,0.00022008,2]
[337311616,1725593468196,-500.0,0.00022008,2]
[337311617,1725593468205,-500.0,0.00022008,2]
[337311618,1725593468214,-537.94,0.00022009,2]
[337311619,1725593468224,-500.0,0.00022009,2]
[337311620,1725593468233,-500.0,0.00022009,2]
[337311621,1725593468243,-500.0,0.00022009,2]
[337311622,1725593468254,-1853.75,0.00022009,2]
[337311623,1725593468264,-500.0,0.00022009,2]
[337311624,1725593468274,-500.0,0.00022009,2]
[337311625,1725593468284,-686.4,0.00022009,2]
[337311626,1725593468295,-500.0,0.00022009,2]
[337311627,1725593468306,-506.68634894,0.00022009,2]
[337311628,1725593468318,-546.92,0.00022009,2]
[337311629,1725593468331,-500.0,0.00022009,2]
[337311630,1725593468341,-500.0,0.00022009,2]
[337311631,1725593468350,-500.0,0.00022009,2]
[337311632,1725593468360,-500.0,0.00022009,2]
[337311633,1725593468370,-500.0,0.00022009,2]
[337311634,1725593468380,-524.57757094,0.00022009,2]
[337311635,1725593468393,-401.44430457,0.00022009,2]
[337311636,1725593468402,-656.95,0.00022009,2]
[337311637,1725593468413,-500.0,0.00022009,2]
[337311638,1725593468423,-523.8578424,0.00022009,2]
[337311639,1725593468434,-500.0,0.00022009,2]
[337311640,1725593468444,-500.0,0.00022009,2]
[337311641,1725593468453,-500.0,0.00022009,2]
[337311642,1725593468463,-500.0,0.00022009,2]
[337311643,1725593468472,-500.0,0.00022009,2]
[337311644,1725593468482,-500.0,0.00022009,2]
[337311645,1725593468491,-500.0,0.00022009,2]
[337311646,1725593468502,-336.12394684,0.00022009,2]
[337311647,1725593468511,-500.0,0.00022009,2]
[337311648,1725593468522,-304.03900997,0.00022009,2]
[337311649,1725593468532,-500.0,0.00022009,2]
[337311650,1725593468542,-500.0,0.00022009,2]
[337311651,1725593468552,-500.0,0.00022009,2]
[337311652,1725593468562,-416.51206106,0.00022009,2]
[337311653,1725593468571,-500.0,0.00022009,2]
[337311654,1725593468581,-500.0,0.00022009,2]
[337311655,1725593468591,-500.0,0.00022009,2]
[337311656,1725593468600,-500.0,0.00022009,2]
[337311657,1725593468610,-500.0,0.00022009,2]
[337311658,1725593468620,-500.0,0.00022009,2]
[337311659,1725593468630,-500.0,0.00022009,2]
[337311660,1725593468639,-500.0,0.00022009,2]
[337311661,1725593468648,-500.0,0.00022009,2]
[337311662,1725593468658,-500.0,0.00022009,2]
[337311663,1725593468667,-500.0,0.00022009,2]
[337311664,1725593468677,-500.0,0.00022009,2]
[337311665,1725593468686,-500.0,0.00022009,2]
[337311666,1725593468696,-500.0,0.00022009,2]
[337311667,1725593468706,-701.01,0.00022009,2]
[337311668,1725593468715,-500.0,0.00022009,2]
[337311669,1725593468728,-500.0,0.00022009,2]
[337311670,1725593468737,-500.0,0.00022009,2]
[337311671,1725593468749,-500.0,0.00022009,2]
[337311672,1725593468759,-500.0,0.00022009,2]
[337311673,1725593468769,-500.0,0.00022009,2]
[337311674,1725593468778,-500.0,0.00022009,2]
[337311675,1725593468788,-542.017378,0.00022009,2]
[337311676,1725593468797,-505.7,0.00022009,2]
[337311677,1725593468806,-500.0,0.00022009,2]
[337311678,1725593468880,-500.0,0.00022009,2]
[337311679,1725593468889,-1058.56,0.00022009,2]
[337311680,1725593468899,-500.0,0.00022009,2]
[337311681,1725593468908,-500.0,0.00022009,2]
[337311682,1725593468918,-500.0,0.00022009,2]
[337311683,1725593468927,-500.0,0.00022009,2]
[337311684,1725593468936,-500.0,0.00022009,2]
[337311685,1725593468945,-500.0,0.00022009,2]
[337311686,1725593468955,-500.0,0.00022009,2]
[337311687,1725593468964,-500.0,0.00022009,2]
[337311688,1725593468974,-500.0,0.00022009,2]
[337311689,1725593468983,-507.26723583,0.00022009,2]
[337311690,1725593468993,-588.12676031,0.00022009,2]
[337311691,1725593469003,-500.0,0.00022009,2]
[337311692,1725593469012,-500.0,0.00022009,2]
[337311693,1725593469022,-500.0,0.00022009,2]
[337311694,1725593469031,-500.0,0.00022009,2]
[337311695,1725593469041,-505.33747918,0.00022009,2]
[337311696,1725593469050,-500.0,0.00022009,2]
[337311697,1725593469060,-500.0,0.00022009,2]
[337311698,1725593469070,-500.0,0.00022009,2]
[337311699,1725593469079,-500.0,0.00022009,2]
[337311700,1725593469089,-636.39,0.00022009,2]
[337311701,1725593469099,-500.0,0.00022009,2]
[337311702,1725593469108,-1466.92,0.00022009,2]
[337311703,1725593469117,-500.0,0.00022009,2]
[337311704,1725593469126,-1269.22,0.00022009,2]
[337311705,1725593469136,-612.19,0.00022009,2]
[337311706,1725593469145,-500.0,0.0002201,2]
[337311707,1725593469155,-1805.39,0.0002201,2]
[337311708,1725593469164,-697.15,0.0002201,2]
[337311709,1725593469174,-987.68,0.0002201,2]
[337311710,1725593469183,-500.0,0.0002201,2]
[337311711,1725593469193,-500.0,0.0002201,2]
[337311712,1725593469202,-500.0,0.0002201,2]
[337311713,1725593469211,-988.36,0.0002201,2]
[337311714,1725593469220,-2185.26,0.0002201,2]
[337311715,1725593469230,-1090.33,0.0002201,2]
[337311716,1725593469240,-1116.36,0.0002201,2]
[337311717,1725593469253,-739.19,0.0002201,2]
[337311718,1725593469263,-500.0,0.0002201,2]
[337311719,1725593469273,-2474.64,0.0002201,2]
[337311720,1725593469283,-500.0,0.0002201,2]
[337311721,1725593469292,-500.0,0.0002201,2]
[337311722,1725593469301,-363.07559159,0.0002201,2]
[337311723,1725593469311,-500.0,0.0002201,2]
[337311724,1725593469320,-604.96,0.0002201,2]
[337311725,1725593469329,-500.0,0.0002201,2]
[337311726,1725593469340,-500.0,0.0002201,2]
[337311727,1725593469349,-500.0,0.0002201,2]
[337311728,1725593469359,-774.78,0.0002201,2]
[337311729,1725593469369,-1364.58,0.0002201,2]
[337311730,1725593469379,-500.0,0.0002201,2]
[337311731,1725593469402,-302.02292114,0.0002201,2]
[337311732,1725593469418,-500.0,0.0002201,2]
[337311733,1725593469439,-500.0,0.0002201,2]
[337311734,1725593469460,-500.0,0.0002201,2]
[337311735,1725593469477,-500.0,0.0002201,2]
[337311736,1725593469496,-751.48,0.0002201,2]
[337311737,1725593469511,-500.0,0.0002201,2]
[337311738,1725593469528,-1510.68,0.0002201,2]
[337311739,1725593469546,-704.01,0.0002201,2]
[337311740,1725593469566,-836.44,0.0002201,2]
[337311741,1725593469578,-500.0,0.0002201,2]
[337311742,1725593469595,-1159.42,0.0002201,2]
[337311743,1725593469612,-500.0,0.0002201,2]
[337311744,1725593469629,-768.94,0.0002201,2]
[337311745,1725593469644,-500.0,0.0002201,2]
[337311746,1725593469658,-500.0,0.0002201,2]
[337311747,1725593469673,-550.74952855,0.0002201,2]
[337311748,1725593469688,-500.0,0.0002201,2]
[337311749,1725593469702,-3790.5,0.0002201,2]
[337311750,1725593469717,-500.0,0.0002201,2]
[337311751,1725593469730,-500.0,0.0002201,2]
[337311752,1725593469744,-151.0,0.0002201,7]
[337311753,1725593469765,-157.737981,0.0002201,7]
[337311754,1725593469779,-205.530515,0.0002201,7]
[337311755,1725593469795,-151.0,0.0002201,7]
[337311756,1725593469809,-500.0,0.00022032,2]
[337311757,1725593469824,-608.37,0.00022032,2]
[337311758,1725593469838,-500.0,0.00022032,2]
[337311759,1725593469853,-825.57,0.00022032,2]
[337311760,1725593469866,-500.0,0.00022032,2]
[337311761,1725593469881,-500.0,0.00022032,2]
[337311762,1725593469895,-500.0,0.00022032,2]
[337311763,1725593469909,-1000.0,0.00022032,2]
[337311764,1725593469923,-500.0,0.00022032,2]
[337311765,1725593469939,-500.0,0.00022032,2]
[337311766,1725593469954,-500.0,0.00022032,2]
[337311767,1725593469968,-578.77,0.00022032,2]
[337311768,1725593469983,-364.0,0.00022192,2]
[337311769,1725593469999,-302.36509981,0.0002222,2]
[337311770,1725593470014,-1008.52915292,0.00022222,2]
[337311771,1725593470028,-2172.16,0.00022264,2]
[337311772,1725593470042,-2026.03,0.00022264,2]
[337311773,1725593470057,-500.0,0.00022264,2]
[337311774,1725593470073,-1752.14,0.00022264,2]
[337311775,1725593470089,-500.0,0.00022264,2]
[337311776,1725593470104,-12734.97,0.00022264,2]
[337311777,1725593470118,-2670.35,0.00022264,2]
[337311778,1725593470134,-2272.45,0.00022264,2]
[337311779,1725593470148,-550.57,0.00022264,2]
[337311780,1725593470163,-1764.86,0.00022264,2]
[337311781,1725593470178,-1698.33,0.00022264,2]
[337311782,1725593470192,-500.0,0.00022264,2]
[337311783,1725593470303,-500.0,0.00022264,2]
[337311784,1725593470316,-3979.67,0.00022264,2]
[337311785,1725593470325,-2381.91,0.00022264,2]
[337311786,1725593470334,-2933.35,0.00022264,2]
[337311787,1725593470344,-1314.22,0.00022264,2]
[337311788,1725593470353,-753.41,0.00022264,2]
[337311789,1725593470362,-10717.05,0.00022264,2]
[337311790,1725593470371,-572.53,0.00022264,2]
[337311791,1725593470383,-888.48,0.00022264,2]
[337311792,1725593470393,-1177.07,0.00022264,2]
[337311793,1725593470402,-1252.65,0.00022264,2]
[337311794,1725593470412,-852.67,0.00022264,2]
[337311795,1725593470421,-5146.8,0.00022264,2]
[337311796,1725593470433,-500.0,0.00022264,2]
[337311797,1725593470443,-1996.99,0.00022264,2]
[337311798,1725593470453,-500.0,0.00022264,2]
[337311799,1725593470465,-664.99,0.00022264,2]
[337311800,1725593470474,-500.0,0.00022264,2]
[337311801,1725593470484,-15307.58,0.00022264,2]
[337311802,1725593470494,-2269.72,0.00022264,2]
[337311803,1725593470506,-500.0,0.00022264,2]
[337311804,1725593470516,-1213.59,0.00022264,2]
[337311805,1725593470526,-2344.78,0.00022264,2]
[337311806,1725593470535,-552.35,0.00022264,2]
[337311807,1725593470544,-659.16,0.00022264,2]
[337311808,1725593470554,-504.42,0.00022264,2]
[337311809,1725593470563,-500.0,0.00022264,2]
[337311810,1725593470573,-1321.4,0.00022264,2]
[337311811,1725593470582,-2904.94,0.00022264,2]
[337311812,1725593470591,-500.0,0.00022264,2]
[337311813,1725593470600,-2679.31,0.00022264,2]
[337311814,1725593470610,-500.0,0.00022264,2]
[337311815,1725593470619,-3747.51,0.00022264,2]
[337311816,1725593470628,-1683.72,0.00022264,2]
[337311817,1725593470638,-2918.83,0.00022264,2]
[337311818,1725593470647,-1813.24,0.00022264,2]
[337311819,1725593470656,-771.77,0.00022264,2]
[337311820,1725593470665,-500.0,0.00022264,2]
[337311821,1725593470675,-500.0,0.00022264,2]
[337311822,1725593470684,-500.0,0.00022264,2]
[337311823,1725593470693,-1831.36,0.00022264,2]
[337311824,1725593470702,-500.0,0.00022264,2]
[337311825,1725593470712,-500.0,0.00022264,2]
[337311826,1725593470721,-876.54,0.00022282,2]
[337311827,1725593470731,-596.98,0.00022282,2]
[337311828,1725593470740,-500.0,0.00022282,2]
[337311829,1725593470750,-1004.06,0.00022282,2]
[337311830,1725593470760,-508.2629763,0.00022282,2]
[337311831,1725593470770,-542.68,0.00022282,2]
[337311832,1725593470780,-500.0,0.00022282,2]
[337311833,1725593470789,-500.0,0.00022282,2]
[337311834,1725593470799,-1328.23,0.00022282,2]
[337311835,1725593470808,-500.0,0.00022282,2]
[337311836,1725593470817,-500.0,0.00022282,2]
[337311837,1725593470827,-615.68,0.00022282,2]
[337311838,1725593470837,-863.59,0.00022282,2]
[337311839,1725593470846,-500.0,0.00022282,2]
[337311840,1725593470855,-526.62,0.00022282,2]
[337311841,1725593470865,-500.0,0.00022282,2]
[337311842,1725593470875,-1059.43,0.00022282,2]
[337311843,1725593470885,-500.0,0.00022282,2]
[337311844,1725593470894,-500.0,0.00022282,2]
[337311845,1725593470905,-500.0,0.00022282,2]
[337311846,1725593470914,-500.0,0.00022282,2]
[337311847,1725593470924,-500.0,0.00022282,2]
[337311848,1725593470933,-500.0,0.00022282,2]
[337311849,1725593470943,-500.0,0.00022282,2]
[337311850,1725593470952,-1281.9,0.00022282,2]
[337311851,1725593470961,-500.0,0.00022282,2]
[337311852,1725593470971,-500.0,0.00022282,2]
[337311853,1725593470980,-578.93,0.00022282,2]
[337311854,1725593470989,-670.95,0.00022282,2]
[337311855,1725593470999,-2461.39,0.00022282,2]
[337311856,1725593471009,-500.0,0.00022282,2]
[337311857,1725593471020,-500.0,0.00022282,2]
[337311858,1725593471029,-1874.78,0.00022282,2]
[337311859,1725593471040,-973.18,0.00022282,2]
[337311860,1725593471050,-1577.08,0.00022282,2]
[337311861,1725593471061,-500.0,0.00022282,2]
[337311862,1725593471072,-500.0,0.00022282,2]
[337311863,1725593471082,-500.0,0.00022282,2]
[337311864,1725593471092,-500.0,0.00022282,2]
[337311865,1725593471101,-638.04,0.00022282,2]
[337311866,1725593471111,-500.0,0.00022282,2]
[337311867,1725593471121,-690.77,0.00022282,2]
[337311868,1725593471131,-500.0,0.00022282,2]
[337311869,1725593471141,-500.0,0.00022282,2]
[337311870,1725593471151,-500.0,0.00022282,2]
[337311871,1725593471161,-2150.55,0.00022282,2]
[337311872,1725593471172,-500.0,0.00022282,2]
[337311873,1725593471183,-2199.22,0.00022282,2]
[337311874,1725593471193,-1666.75,0.00022282,2]
[337311875,1725593471203,-3102.05,0.00022282,2]
[337311876,1725593471214,-500.0,0.00022282,2]
[337311877,1725593471224,-151.0,0.00022282,7]
[337311878,1725593471235,-12189.54,0.00022282,2]
[337311879,1725593471247,-500.0,0.00022282,2]
[337311880,1725593471258,-500.0,0.00022282,2]
[337311881,1725593471268,-1450.49,0.00022282,2]
[337311882,1725593471279,-2127.99,0.00022282,2]
[337311883,1725593471288,-500.0,0.00022282,2]
[337311884,1725593471298,-256.7308,0.00022282,7]
[337311885,1725593471308,-500.0,0.00022282,2]
[337311886,1725593471318,-500.0,0.00022282,2]
[337311887,1725593471328,-256.7308,0.00022282,7]
[337311888,1725593471338,-241.600638,0.00022282,7]
[337311889,1725593471348,-500.0,0.00022282,2]
[337311890,1725593471358,-275.58635682,0.00022282,2]
[337311891,1725593471369,-1010.3,0.00022282,2]
[337311892,1725593471380,-284.979147,0.00022282,7]
[337311893,1725593471393,-672.49,0.00022282,2]
[337311894,1725593471403,-284.979147,0.00022282,7]
[337311895,1725593471412,-500.0,0.00022282,2]
[337311896,1725593471422,-1117.75,0.00022282,2]
[337311897,1725593471433,-917.61,0.00022282,2]
[337311898,1725593471443,-195.82734669,0.00022282,2]
[337311899,1725593471453,-655.17,0.00022282,2]
[337311900,1725593471463,-500.0,0.00022282,2]
[337311901,1725593471474,-891.96,0.00022282,2]
[337311902,1725593471483,-477.56749803,0.00022282,2]
[337311903,1725593471494,-500.0,0.00022282,2]
[337311904,1725593471504,-929.52,0.00022282,2]
[337311905,1725593471514,-3772.49,0.00022282,2]
[337311906,1725593471524,-595.04,0.00022282,2]
[337311907,1725593471534,-25483.24,0.00022282,2]
[337311908,1725593471544,-500.0,0.00022282,2]
[337311909,1725593471553,-500.0,0.00022282,2]
[337311910,1725593471564,-500.0,0.00022282,2]
[337311911,1725593471575,-500.0,0.00022282,2]
[337311912,1725593471585,-500.0,0.00022282,2]
[337311913,1725593471595,-500.0,0.00022282,2]
[337311914,1725593471667,-500.0,0.00022282,2]
[337311915,1725593471684,-537.94,0.00022283,2]
[337311916,1725593471694,-500.0,0.00022283,2]
[337311917,1725593471704,-500.0,0.00022283,2]
[337311918,1725593471713,-1853.75,0.00022283,2]
[337311919,1725593471723,-500.0,0.00022283,2]
[337311920,1725593471732,-500.0,0.00022283,2]
[337311921,1725593471743,-686.4,0.00022283,2]
[337311922,1725593471754,-500.0,0.00022283,2]
[337311923,1725593471765,-546.92,0.00022283,2]
[337311924,1725593471775,-500.0,0.00022283,2]
[337311925,1725593471784,-500.0,0.00022283,2]
[337311926,1725593471794,-500.0,0.00022283,2]
[337311927,1725593471804,-500.0,0.00022283,2]
[337311928,1725593471813,-632.87485854,0.00022283,2]
[337311929,1725593471823,-656.95,0.00022283,2]
[337311930,1725593471833,-500.0,0.00022283,2]
[337311931,1725593471844,-500.0,0.00022283,2]
[337311932,1725593471853,-500.0,0.00022283,2]
[337311933,1725593471863,-500.0,0.00022283,2]
[337311934,1725593471872,-500.0,0.00022283,2]
[337311935,1725593471882,-500.0,0.00022283,2]
[337311936,1725593471893,-500.0,0.00022283,2]
[337311937,1725593471903,-500.0,0.00022283,2]
[337311938,1725593471912,-500.0,0.00022283,2]
[337311939,1725593471922,-500.0,0.00022283,2]
[337311940,1725593471931,-500.0,0.00022283,2]
[337311941,1725593471940,-500.0,0.00022283,2]
[337311942,1725593471950,-500.0,0.00022283,2]
[337311943,1725593471959,-500.0,0.00022283,2]
[337311944,1725593471969,-500.0,0.00022283,2]
[337311945,1725593471978,-500.0,0.00022283,2]
[337311946,1725593471988,-500.0,0.00022283,2]
[337311947,1725593471998,-500.0,0.00022283,2]
[337311948,1725593472008,-500.0,0.00022283,2]
[337311949,1725593472017,-500.0,0.00022283,2]
[337311950,1725593472027,-500.0,0.00022283,2]
[337311951,1725593472036,-500.0,0.00022283,2]
[337311952,1725593472046,-647.21042574,0.00022283,2]
[337311953,1725593472056,-500.0,0.00022283,2]
[337311954,1725593472066,-500.0,0.00022283,2]
[337311955,1725593472076,-500.0,0.00022283,2]
[337311956,1725593472086,-701.01,0.00022283,2]
[337311957,1725593472096,-500.0,0.00022283,2]
[337311958,1725593472106,-500.0,0.00022283,2]
[337311959,1725593472116,-500.0,0.00022283,2]
[337311960,1725593472126,-500.0,0.00022283,2]
[337311961,1725593472135,-500.0,0.00022283,2]
[337311962,1725593472145,-500.0,0.00022283,2]
[337311963,1725593472155,-500.0,0.00022283,2]
[337311964,1725593472169,-505.7,0.00022283,2]
[337311965,1725593472181,-500.0,0.00022283,2]
[337311966,1725593472191,-500.0,0.00022283,2]
[337311967,1725593472200,-1058.56,0.00022283,2]
[337311968,1725593472210,-500.0,0.00022283,2]
[337311969,1725593472220,-624.75679265,0.00022283,2]
[337311970,1725593472230,-500.0,0.00022283,2]
[337311971,1725593472240,-500.0,0.00022283,2]
[337311972,1725593472251,-500.0,0.00022283,2]
[337311973,1725593472261,-500.0,0.00022283,2]
[337311974,1725593472271,-500.0,0.00022283,2]
[337311975,1725593472280,-500.0,0.00022283,2]
[337311976,1725593472291,-610.09334988,0.00022283,2]
[337311977,1725593472301,-500.0,0.00022283,2]
[337311978,1725593472311,-500.0,0.00022283,2]
[337311979,1725593472321,-500.0,0.00022283,2]
[337311980,1725593472331,-500.0,0.00022283,2]
[337311981,1725593472342,-500.0,0.00022283,2]
[337311982,1725593472352,-500.0,0.00022283,2]
[337311983,1725593472362,-500.0,0.00022283,2]
[337311984,1725593472372,-500.0,0.00022283,2]
[337311985,1725593472382,-636.39,0.00022283,2]
[337311986,1725593472395,-500.0,0.00022283,2]
[337311987,1725593472404,-1466.92,0.00022283,2]
[337311988,1725593472414,-642.85355161,0.00022283,2]
[337311989,1725593472424,-1269.22,0.00022283,2]
[337311990,1725593472435,-612.19,0.00022283,2]
[337311991,1725593472445,-500.0,0.00022284,2]
[337311992,1725593472454,-1805.39,0.00022284,2]
[337311993,1725593472466,-697.15,0.00022284,2]
[337311994,1725593472476,-987.68,0.00022284,2]
[337311995,1725593472486,-500.0,0.00022284,2]
[337311996,1725593472496,-500.0,0.00022284,2]
[337311997,1725593472507,-500.0,0.00022284,2]
[337311998,1725593472517,-988.36,0.00022284,2]
[337311999,1725593472526,-2185.26,0.00022284,2]
[337312000,1725593472536,-1090.33,0.00022284,2]
[337312001,1725593472545,-1116.36,0.00022284,2]
[337312002,1725593472556,-739.19,0.00022284,2]
[337312003,1725593472565,-500.0,0.00022284,2]
[337312004,1725593472574,-2474.64,0.00022284,2]
[337312005,1725593472584,-500.0,0.00022284,2]
[337312006,1725593472594,-500.0,0.00022284,2]
[337312007,1725593472603,-500.0,0.00022284,2]
[337312008,1725593472612,-604.96,0.00022284,2]
[337312009,1725593472621,-507.76099309,0.00022284,2]
[337312010,1725593472630,-500.0,0.00022284,2]
[337312011,1725593472639,-500.0,0.00022284,2]
[337312012,1725593472649,-774.78,0.00022284,2]
[337312013,1725593472659,-1364.58,0.00022284,2]
[337312014,1725593472668,-500.0,0.00022284,2]
[337312015,1725593472678,-500.0,0.00022284,2]
[337312016,1725593472688,-500.0,0.00022284,2]
[337312017,1725593472697,-500.0,0.00022284,2]
[337312018,1725593472707,-500.0,0.00022284,2]
[337312019,1725593472717,-751.48,0.00022284,2]
[337312020,1725593472726,-500.0,0.00022284,2]
[337312021,1725593472735,-1510.68,0.00022284,2]
[337312022,1725593472745,-704.01,0.00022284,2]
[337312023,1725593472757,-836.44,0.00022284,2]
[337312024,1725593472766,-500.0,0.00022284,2]
[337312025,1725593472776,-1159.42,0.00022284,2]
[337312026,1725593472786,-500.0,0.00022284,2]
[337312027,1725593472799,-768.94,0.00022284,2]
[337312028,1725593472809,-500.0,0.00022284,2]
[337312029,1725593472818,-500.0,0.00022284,2]
[337312030,1725593472828,-500.0,0.00022284,2]
[337312031,1725593472838,-3790.5,0.00022284,2]
[337312032,1725593472848,-500.0,0.00022284,2]
[337312033,1725593472858,-500.0,0.00022284,2]
[337312034,1725593472869,-151.0,0.00022284,7]
[337312035,1725593472958,-151.0,0.00022284,7]
[337312036,1725593472970,-151.0,0.00022284,7]
[337312037,1725593472980,-151.0,0.00022284,7]
[337312038,1725593472993,-783.083183,0.00022284,7]
[337312039,1725593473006,-783.083183,0.00022284,7]
[337312040,1725593473017,-152.258798,0.00022284,7]
[337312041,1725593473028,-226.425906,0.00022284,7]
[337312042,1725593473041,-226.425906,0.00022284,7]
[337312043,1725593473053,-1316.63121946,0.000223,2]
[337312044,1725593473063,-500.0,0.00022306,2]
[337312045,1725593473073,-608.37,0.00022306,2]
[337312046,1725593473083,-500.0,0.00022306,2]
[337312047,1725593473095,-825.57,0.00022306,2]
[337312048,1725593473106,-500.0,0.00022306,2]
[337312049,1725593473118,-500.0,0.00022306,2]
[337312050,1725593473129,-500.0,0.00022306,2]
[337312051,1725593473140,-500.0,0.00022306,2]
[337312052,1725593473151,-500.0,0.00022306,2]
[337312053,1725593473162,-552.56594081,0.00022306,2]
[337312054,1725593473172,-578.77,0.00022306,2]
[337312055,1725593473185,-150.0,0.00022327,2]
[337312056,1725593473196,-523.0,0.00022327,2]
[337312057,1725593473207,-302.36509981,0.0002244,2]
[337312058,1725593473217,-1500.0,0.00022522,2]
[337312059,1725593473227,-2172.16,0.00022538,2]
[337312060,1725593473237,-2026.03,0.00022538,2]
[337312061,1725593473247,-499.11125819,0.00022538,2]
[337312062,1725593473260,-1752.14,0.00022538,2]
[337312063,1725593473270,-500.0,0.00022538,2]
[337312064,1725593473280,-12734.97,0.00022538,2]
[337312065,1725593473290,-2670.35,0.00022538,2]
[337312066,1725593473299,-2272.45,0.00022538,2]
[337312067,1725593473309,-550.57,0.00022538,2]
[337312068,1725593473318,-1764.86,0.00022538,2]
[337312069,1725593473328,-1698.33,0.00022538,2]
[337312070,1725593473338,-500.0,0.00022538,2]
[337312071,1725593473348,-500.0,0.00022538,2]
[337312072,1725593473359,-3979.67,0.00022538,2]
[337312073,1725593473369,-2381.91,0.00022538,2]
[337312074,1725593473378,-2933.35,0.00022538,2]
[337312075,1725593473391,-1314.22,0.00022538,2]
[337312076,1725593473401,-753.41,0.00022538,2]
[337312077,1725593473411,-10717.05,0.00022538,2]
[337312078,1725593473420,-572.53,0.00022538,2]
[337312079,1725593473431,-888.48,0.00022538,2]
[337312080,1725593473440,-1177.07,0.00022538,2]
[337312081,1725593473450,-1252.65,0.00022538,2]
[337312082,1725593473459,-852.67,0.00022538,2]
[337312083,1725593473471,-5146.8,0.00022538,2]
[337312084,1725593473481,-500.0,0.00022538,2]
[337312085,1725593473491,-1996.99,0.00022538,2]
[337312086,1725593473502,-500.0,0.00022538,2]
[337312087,1725593473512,-664.99,0.00022538,2]
[337312088,1725593473522,-500.0,0.00022538,2]
[337312089,1725593473532,-15307.58,0.00022538,2]
[337312090,1725593473541,-2269.72,0.00022538,2]
[337312091,1725593473551,-500.0,0.00022538,2]
[337312092,1725593473562,-1213.59,0.00022538,2]
[337312093,1725593473578,-2344.78,0.00022538,2]
[337312094,1725593473593,-552.35,0.00022538,2]
[337312095,1725593473603,-659.16,0.00022538,2]
[337312096,1725593473614,-504.42,0.00022538,2]
[337312097,1725593473624,-500.0,0.00022538,2]
[337312098,1725593473635,-1321.4,0.00022538,2]
[337312099,1725593473645,-2904.94,0.00022538,2]
[337312100,1725593473655,-528.19366365,0.00022538,2]
[337312101,1725593473665,-2679.31,0.00022538,2]
[337312102,1725593473675,-500.0,0.00022538,2]
[337312103,1725593473686,-3747.51,0.00022538,2]
[337312104,1725593473695,-1683.72,0.00022538,2]
[337312105,1725593473707,-2918.83,0.00022538,2]
[337312106,1725593473716,-1813.24,0.00022538,2]
[337312107,1725593473727,-771.77,0.00022538,2]
[337312108,1725593473737,-500.0,0.00022538,2]
[337312109,1725593473749,-500.0,0.00022538,2]
[337312110,1725593473760,-500.0,0.00022538,2]
[337312111,1725593473771,-1831.36,0.00022538,2]
[337312112,1725593473780,-500.0,0.00022538,2]